[Event "87th Spanish Championship 2022"]
[Site "Linares"]
[Date "2022.08.14"]
[Round "5.22"]
[White "Guerra Bastida, Diego"]
[Black "Domingo Nunez, Ruben"]
[Result "0-1"]
[ECO "A30"]
[WhiteElo "2242"]
[BlackElo "2361"]
[Annotator "TA"]
[PlyCount "102"]
[EventDate "2022.08.11"]
[EventType "swiss"]
[EventCountry "ESP"]
[SourceTitle "playchess.com"]
[Source "ChessBase"]
[SourceQuality "1"]
[TimeControl "5400+30"]

{[%evp 16,102,1,0,0,0,0,0,4,0,0,0,0,9,17,-16,-17,-18,0,0,15,-75,-55,-33,-26,-57,-88,-120,-118,-114,-118,-172,-165,-205,-195,-217,-215,-213,-219,-217,-199,-210,-200,-342,-321,-387,-400,-545,-498,-450,0,-545,-533,-518,-515,-722,-706,-709,-686,-729,-690,-870,-658,-841,-833,-1149,-795,-1098,-1122,-1318,-421,-424,-277,-260,-270,-228,-236,-366,-354,-534,-520,-501,-501,-495,-488,-693,-314,-982,-896]} 1. c4 {[%emt 0:00:14]} c5 {[%emt 0:02:30]} 2. Nf3 {[%emt 0:00:41]} Nc6 {[%emt 0:01:25]} 3. Nc3 {[%emt 0:02:08]} g6 4. e3 {[%emt 0:00:58]} Nf6 {[%emt 0:00:31]} 5. d4 {[%emt 0:00:59]} cxd4 {[%emt 0:00:04]} 6. exd4 {[%emt 0:00:07]} d5 {[%emt 0:00:03]} 7. cxd5 {[%emt 0:01:47]} Nxd5 {[%emt 0:00:04]} 8. Bc4 {[%emt 0:00:16]} Nb6 {[%emt 0:09:30]} 9. Bb5 {[%emt 0:03:27]} Bg7 {[%emt 0:00:30] A35: Symmetrical English: 2 Nc3 Nc6 3 Nf3.} 10. O-O {[%emt 0:05:40] Threatens to win with d5.} O-O {[%emt 0:05:01][%cal Rc6d4]} 11. Bxc6 {[%emt 0:03:09]} bxc6 {[%emt 0:00:15] The position is equal.} 12. h3 {[%emt 0:01:01]} Be6 {[%emt 0:04:53]} 13. Re1 {[%emt 0:01:33]} Rc8 {[%emt 0:03:36]} 14. Bg5 {[%emt 0:10:41]} Re8 {[%emt 0:09:46] [#]} 15. Rxe6 $146 {[%emt 0:06:33]} ({Predecessor:} 15. Ne4 Bd5 16. Qe2 Qd7 17. b3 Bxe4 18. Qxe4 c5 19. Rad1 c4 20. Ne5 Qe6 21. Nxc4 Qxe4 22. Rxe4 Nxc4 23. bxc4 Rxc4 24. Rxe7 Rxe7 {½-½ (24) Sepp,O (2446)-Maki Uuro,M (2341) Finland 2012}) 15... fxe6 {[%emt 0:00:53]} 16. Qe2 {[%emt 0:00:27]} e5 {[%emt 0:00:42]} (16... Bxd4 $2 17. Qxe6+ Kg7 18. Rd1 $18) 17. dxe5 {[%emt 0:02:29]} Qd7 {[%emt 0:00:46]} 18. e6 {[%emt 0:06:02]} (18. Re1 $11 {keeps the balance.}) 18... Qc7 {[%emt 0:04:35]} 19. Rc1 {[%emt 0:08:08]} Rcd8 {[%emt 0:08:48]} 20. Qe4 {[%emt 0:05:18][%cal Oc3b5]} Nd5 {[%emt 0:14:17] White is on the road to losing.} 21. Qh4 {[%emt 0:06:48]} Nxc3 {[%emt 0:16:56]} 22. bxc3 {[%emt 0:00:36]} Bf6 {[%emt 0:00:42]} 23. Re1 {[%emt 0:07:36]} (23. Qc4 $17 {keeps fighting.}) 23... Bxc3 $19 {[%emt 0:06:02]} 24. Bf4 {[%emt 0:00:36]} Qa5 {[%emt 0:00:03]} 25. Ng5 {[%emt 0:01:12]} h5 {[%emt 0:00:01]} 26. Rf1 {[%emt 0:02:56]} Bf6 {[%emt 0:02:43]} (26... Qxa2 27. Be5 Qa5 28. Qe4 Qxe5 29. Qxg6+ Qg7 30. Qf7+ Qxf7 31. exf7+ Kf8 32. fxe8=N Kxe8 33. Ne4 $17) 27. Qg3 {[%emt 0:03:42]} Kg7 {[%emt 0:03:20]} ({Stronger than} 27... Qxa2 28. Nf7 Kh7 29. Nxd8 Rxd8 30. Be3 $15) 28. Nf7 {[%emt 0:02:01]} Rd5 {[%emt 0:01:42]} ({Inferior is} 28... Qxa2 29. Bh6+ Kh7 30. Nxd8 Rxd8 31. Be3 $15) 29. Bc7 {[%emt 0:01:32]} (29. Qb3 {was called for.}) 29... Qxa2 {[%emt 0:03:49]} ({Don't go for} 29... Qd2 $2 30. Be5 $19) 30. Qe3 {[%emt 0:03:43] Hoping for Qh6+.} Qd2 {[%emt 0:00:08]} 31. Qf3 {[%emt 0:01:54]} Qd3 {[%emt 0:01:41] ...Qxf3 is the strong threat.} 32. Qf4 {[%emt 0:00:37]} Qd2 {[%emt 0:00:17]} 33. Qf3 {[%emt 0:00:26]} a5 {[%emt 0:00:25]} 34. Bf4 {[%emt 0:00:59]} Qd3 {[%emt 0:00:05]} 35. Be3 {[%emt 0:00:04]} Qf5 {[%emt 0:01:11]} 36. Bh6+ {[%emt 0:00:39]} Kh7 {[%emt 0:00:00]} 37. Qe2 {[%emt 0:00:22]} Qd3 {[%emt 0:00:57] Inhibits Qc4.} 38. Qa2 {[%emt 0:00:47]} Qe4 {Strongly threatening ...Rb8.} 39. Be3 {[%emt 0:01:14]} Rb8 {[%emt 0:00:45]} 40. Bc1 {[%emt 0:01:10]} Kg7 {[%emt 0:00:50]} 41. Bh6+ {[%emt 0:03:37] [#]} Kg8 $1 {[%emt 0:00:06] White must now prevent ...Rb2.} 42. Qa3 {[%emt 0:00:27]} Qxe6 {[%emt 0:00:22]} (42... Rb1 $142 43. Rxb1 Qxb1+ 44. Kh2 Rd1) 43. Qg3 {[%emt 0:00:08] [#]} Qxf7 {[%emt 0:00:57]} 44. Qxb8+ {[%emt 0:00:08]} Kh7 {[%emt 0:00:01]} 45. Be3 {[%emt 0:00:22]} Qe6 {[%emt 0:01:06]} 46. Qa7 {[%emt 0:01:29]} (46. Qf8 $142 Bg5 47. Bxg5 Rxg5 48. Qf4) 46... Qe4 {[%emt 0:00:31]} 47. Re1 {[%emt 0:02:26]} (47. Qa8 $142 Bg5 48. Bxg5 Rxg5 49. f3) 47... Qb4 {[%emt 0:00:24]} 48. Rc1 {[%emt 0:00:43]} a4 {[%emt 0:00:28] And now ...a3 would win.} 49. Bc5 {[%emt 0:00:37]} Qb2 {[%emt 0:00:39]} 50. Re1 {[%emt 0:00:22]} (50. Rf1 $142 Rxc5 51. Qxc5) 50... Re5 {[%emt 0:00:22]} (50... Qc3 $142 51. Rf1 Rxc5 52. Qxa4 Bd4) 51. Rd1 {[%emt 0:00:59]} (51. Rxe5 Qa1+ 52. Re1 Qxe1+ 53. Kh2) 51... Qc2 {[%csl LRc5,LRd1] Weighted Error Value: White=0.32/Black=0.17 (very precise)} 0-1

[Event "87th Spanish Championship 2022"]
[Site "Linares"]
[Date "2022.08.14"]
[Round "5.23"]
[White "De La Cruz Revilla, Miguel"]
[Black "Domingo Nunez, Alejandro"]
[Result "1-0"]
[ECO "B10"]
[WhiteElo "2213"]
[BlackElo "2335"]
[Annotator "TA"]
[PlyCount "99"]
[EventDate "2022.08.11"]
[EventType "swiss"]
[EventCountry "ESP"]
[SourceTitle "playchess.com"]
[Source "ChessBase"]
[SourceQuality "1"]
[TimeControl "5400+30"]

{[%evp 20,99,19,18,26,20,27,4,8,-8,0,0,0,0,-8,-8,-7,-17,-17,-8,-3,0,11,-21,37,-13,19,-20,0,0,0,-17,-4,-12,-6,-21,-20,-72,-33,-44,-28,-40,63,76,76,66,100,92,101,93,95,107,116,104,189,185,185,167,199,193,204,195,207,190,294,200,353,236,645,399,512,510,1608,1499,2033,1075,916,933,29980,29981,29980,29980]} 1. e4 {[%emt 0:00:40]} c6 {[%emt 0:00:22]} 2. Nc3 {[%emt 0:00:07]} d5 {[%emt 0:00:05]} 3. Nf3 {[%emt 0:00:04]} g6 {[%emt 0:07:47]} 4. d4 Bg7 {[%emt 0:00:10]} 5. h3 {[%emt 0:05:05]} dxe4 {[%emt 0:00:04]} 6. Nxe4 {[%emt 0:00:06]} Nf6 {[%emt 0:00:03]} 7. Bd3 {[%emt 0:01:38]} Nxe4 {[%emt 0:00:42]} 8. Bxe4 {[%emt 0:00:02]} O-O {[%emt 0:00:05]} 9. O-O {[%emt 0:00:41]} Nd7 {[%emt 0:00:03]} 10. c3 {[%emt 0:00:59]} Qc7 {[%emt 0:00:43] 10...e5 is becoming the main line.} 11. Re1 {[%emt 0:01:27]} c5 {[%emt 0:00:38] B15: Caro-Kann: 3 Nc3: 3...g6 and 3...dxe4 4 Nxe4 Nf6 5 Nxf6+ exf6.} 12. Bg5 {[%emt 0:15:08]} cxd4 {[%emt 0:13:59]} 13. cxd4 {[%emt 0:09:12]} Nf6 {[%emt 0:00:22] [#] The position is equal.} 14. Bc2 $146 {[%emt 0:03:14]} ({Predecessor:} 14. Bd3 Be6 15. Qd2 Bd5 16. Ne5 Rad8 17. Rac1 Qb6 18. Bb1 Be6 19. Nf3 Rd7 20. Red1 {½-½ (48) Choisy,M (2071)-Piankov,E (2358) Agneaux 2004}) 14... Qd6 {[%emt 0:12:55]} 15. Bb3 {[%emt 0:00:50]} b6 {[%emt 0:00:08]} 16. Qe2 {[%emt 0:01:16]} e6 {[%emt 0:00:32]} 17. Qe5 {[%emt 0:01:52]} Qd8 {[%emt 0:06:45]} 18. Rad1 {[%emt 0:30:04]} Bb7 {[%emt 0:02:03]} 19. Qf4 {[%emt 0:05:01]} Nd5 {[%emt 0:09:27]} 20. Qh4 {[%emt 0:00:31]} Qd6 {[%emt 0:00:30]} 21. Bh6 {[%emt 0:02:46]} Qd8 {[%emt 0:08:03]} (21... a5 $11) 22. Bg5 {[%emt 0:00:16]} (22. Ng5 $14 Qf6 23. Bxg7 Qxg7 24. Ne4) 22... Qd6 {[%emt 0:02:11]} 23. Bh6 {[%emt 0:00:07]} Bxh6 {[%emt 0:03:25]} 24. Qxh6 {[%emt 0:00:03] [#] Ng5 is the strong threat.} f6 {[%emt 0:00:11] Prevents Ng5.} 25. Re4 {[%emt 0:03:02]} Rae8 {[%emt 0:02:38]} 26. Rde1 {[%emt 0:00:21]} Rf7 {[%emt 0:02:46]} 27. Ba4 {[%emt 0:06:43]} Ree7 {[%emt 0:00:20]} 28. Rg4 {[%emt 0:04:25]} (28. Bb3 $11 {keeps the balance.}) 28... Rg7 {[%emt 0:01:47]} 29. Bb3 {[%emt 0:00:54]} g5 {[%emt 0:10:55]} 30. Bxd5 {[%emt 0:00:56]} exd5 {[%emt 0:00:01]} (30... Rg6 $1 $15 31. Bxe6+ Rxe6 32. Rxe6 Qxe6) 31. Rxe7 $14 {[%emt 0:03:49]} Qxe7 {[%emt 0:00:03] [#] Black is on the road to losing.} 32. h4 $1 {[%emt 0:00:31]} Rg6 {[%emt 0:13:45]} 33. Qh5 {[%emt 0:00:32][%cal Rh4g5]} ({Stronger than} 33. hxg5 f5 34. Rg3 Rxh6 $15) 33... Bc8 {[%emt 0:01:09]} 34. Rg3 {[%emt 0:00:08][%cal Rh4g5,Bg4g3,Bg3e3,Be3e4][%mdl 32]} g4 {[%emt 0:01:23] And now ...Kg7 would win.} 35. Qxd5+ {[%emt 0:00:44]} Kh8 {[%emt 0:00:03]} 36. Qc4 {[%emt 0:01:54]} Bf5 {[%emt 0:01:49]} (36... Bd7 $16 {might work better.}) 37. Nd2 $18 {[%emt 0:01:22]} Rg8 {[%emt 0:00:35]} 38. Re3 {[%emt 0:00:32]} Qd7 {[%emt 0:00:28]} 39. Ne4 {[%emt 0:01:19]} Rc8 {[%emt 0:00:17]} 40. Qb4 {[%emt 0:00:54]} Bxe4 {[%emt 0:00:45]} 41. Rxe4 {[%emt 0:00:12][%mdl 4096] Endgame KQR-KQR} Qf5 {[%emt 0:00:31]} (41... h5 $142 42. Re7 a5 43. Rxd7 axb4) 42. Qe1 {[%emt 0:00:54]} Qg6 $2 {[%emt 0:00:28]} (42... Kg7 {was called for.} 43. Re7+ Kg6) 43. g3 {[%emt 0:00:30]} Kg7 $2 {[%emt 0:00:31]} (43... Rc1 44. Qxc1 Qxe4) 44. Qe3 {[%emt 0:00:27]} Kf8 45. d5 {[%emt 0:00:36] Threatens to win with Re7.} Rc1+ {[%emt 0:01:01]} (45... Qf7 $142 46. Rxg4 Qxd5) 46. Kg2 {[%emt 0:00:48]} Rd1 {[%emt 0:00:07]} 47. Qa3+ {[%emt 0:00:23]} Kg8 {[%emt 0:00:11]} 48. Qa4 {[%emt 0:00:14] Active counter play!} h5 {[%emt 0:00:17]} 49. Re8+ {[%emt 0:00:24]} Kg7 {[%emt 0:00:49]} 50. Qxa7+ {[%emt 0:00:17] Weighted Error Value: White=0.25 (precise) /Black=0.47} 1-0

[Event "87th Spanish Championship 2022"]
[Site "Linares"]
[Date "2022.08.14"]
[Round "5.24"]
[White "Jimenez Bernal, Francisco"]
[Black "Alvarez Fernandez, Enrique"]
[Result "1-0"]
[ECO "D10"]
[WhiteElo "2149"]
[BlackElo "2329"]
[Annotator "TA"]
[PlyCount "69"]
[EventDate "2022.08.11"]
[EventType "swiss"]
[EventCountry "ESP"]
[SourceTitle "playchess.com"]
[Source "ChessBase"]
[SourceQuality "1"]
[TimeControl "5400+30"]

{[%evp 15,69,21,12,0,3,10,25,26,17,17,17,17,29,25,34,14,22,27,32,22,30,33,24,30,32,11,7,5,38,37,41,5,7,0,67,66,64,54,35,42,172,145,344,334,344,306,279,281,1008,719,1162,1154,1297,1296,1035,1034]} 1. d4 {[%emt 0:00:03]} d5 {[%emt 0:00:08]} 2. c4 {[%emt 0:00:11]} c6 {[%emt 0:00:07]} 3. cxd5 {[%emt 0:00:44]} cxd5 {[%emt 0:00:06]} 4. Nc3 {[%emt 0:00:16]} Nf6 {[%emt 0:00:16]} 5. Nf3 {[%emt 0:00:47]} Nc6 {[%emt 0:00:14]} 6. Bf4 {[%emt 0:00:23]} a6 {[%emt 0:00:15]} 7. e3 {[%emt 0:00:24]} Bf5 {[%emt 0:00:18]} 8. Rc1 {[%emt 0:00:26]} Rc8 {[%emt 0:00:20]} 9. Be2 {[%emt 0:01:00] D13: Slav Defence: Exchange variation without ...Bf5.} e6 {[%emt 0:00:35]} 10. O-O {[%emt 0:00:32]} Nd7 {[%emt 0:01:19]} 11. Na4 {[%emt 0:01:00] White has an edge.} Be7 {[%emt 0:02:28]} 12. h3 {[%emt 0:00:58]} O-O {[%emt 0:07:51]} 13. a3 {[%emt 0:00:26]} Na5 {[%emt 0:06:28][%cal Bc6a5,Ba5c4,Bc4b2][%mdl 32]} 14. Nc5 {[%emt 0:03:38]} Nxc5 {[%emt 0:02:58]} 15. dxc5 {[%emt 0:00:07]} Nc4 {[%emt 0:01:13]} 16. b4 {[%emt 0:01:13]} b5 {[%emt 0:05:31]} 17. a4 {[%emt 0:07:04] And now axb5 would win.} Nb2 {[%emt 0:13:51][%csl LRa4,LRd1]} 18. Qd2 {[%emt 0:00:18]} Nxa4 {[%emt 0:00:49]} 19. Nd4 {[%emt 0:00:15] [#]} Be4 $146 {[%emt 0:03:43]} ({Predecessor:} 19... Bg6 20. Be5 Bf6 21. Bxf6 Qxf6 22. f4 h6 23. Bd1 e5 24. fxe5 Qxe5 25. Bb3 Rfd8 26. Bxa4 bxa4 {½-½ (60) Deskin,G (2166)-Edwards,K (2215) ICCF email 2018}) 20. f3 {[%emt 0:02:28][%mdl 1024] White has compensation.} Bg6 {[%emt 0:00:11]} 21. Ra1 {[%emt 0:00:16]} Bf6 {[%emt 0:11:55] aiming for ...e5.} 22. Bd6 {[%emt 0:07:20]} Be7 {[%emt 0:07:55]} 23. Bh2 {[%emt 0:00:34]} Bf6 {[%emt 0:00:42]} 24. Bd6 {[%emt 0:06:25]} Re8 {[%emt 0:03:31] [#]} (24... Be7 $11 25. Bxe7 Qxe7) 25. Rxa4 $1 $14 {[%emt 0:05:56]} bxa4 {[%emt 0:02:36]} 26. Bxa6 {[%emt 0:00:11] White is much more active.} Ra8 {[%emt 0:03:45]} 27. b5 {[%emt 0:04:19][%cal Bb4b5,Bb5a6,Ba6a7][%mdl 32] Strongly threatening Bb7.} Rxa6 {[%emt 0:01:42]} 28. bxa6 $18 {[%emt 0:00:03]} Qa8 $2 {[%emt 0:09:29] This costs Black the game.} (28... Qd7 $16 {might work better.}) 29. Qa5 {[%emt 0:03:52]} Bd3 {[%emt 0:05:36] [#]} 30. a7 $1 {[%emt 0:05:30]} Bxf1 {[%emt 0:01:44]} 31. Kxf1 {[%emt 0:00:09] Threatens to win with Nb5.} Be7 $2 {[%emt 0:05:02]} (31... a3 32. Qxa3 Rc8) 32. Qxa4 {[%emt 0:25:23] White is clearly winning.} Bxd6 {[%emt 0:00:03]} 33. cxd6 {[%emt 0:00:10][%cal Oa4e8] Intending Qxe8+! and mate.} Rd8 {[%emt 0:01:31]} 34. Qa6 {[%emt 0:00:46] Nc6 is the strong threat.} h5 {[%emt 0:01:21]} 35. Nb5 {[%emt 0:01:58] Weighted Error Value: White=0.05 (flawless) /Black=0.30} 1-0

[Event "87th Spanish Championship 2022"]
[Site "Linares"]
[Date "2022.08.14"]
[Round "5.25"]
[White "Horcajuelo Rocamora, Martin"]
[Black "Alshameary Puente, Ismael"]
[Result "0-1"]
[ECO "D38"]
[WhiteElo "2107"]
[BlackElo "2352"]
[Annotator "TA"]
[PlyCount "116"]
[EventDate "2022.08.11"]
[EventType "swiss"]
[EventCountry "ESP"]
[SourceTitle "playchess.com"]
[Source "ChessBase"]
[SourceQuality "1"]
[TimeControl "5400+30"]

{[%evp 12,116,13,13,18,12,31,10,12,0,0,0,37,29,57,59,71,66,91,33,84,-2,-2,-24,-12,-22,-12,-22,78,100,89,88,223,94,96,91,137,0,0,0,0,0,0,-106,32,-269,-241,-338,-313,-621,-423,-413,-410,-339,-36,-1018,21,12,104,95,156,-40,-40,-31,-36,-41,-35,-43,-6,-208,-200,-193,-187,-250,-245,-273,-177,-176,0,-243,-210,-225,-256,-250,-236,-268,-264,-5404,-1876,-5590,-941,-714,-684,-5535,-5404,-5089,-268,-5143,-5081,-2011,-1887,-1562,-1539,-29988,-29989,-29989,-29990]} 1. d4 {[%emt 0:00:01]} Nf6 {[%emt 0:02:40]} 2. c4 {[%emt 0:00:11]} e6 {[%emt 0:00:05]} 3. Nf3 {[%emt 0:00:10]} d5 {[%emt 0:00:23]} 4. Nc3 {[%emt 0:00:12]} Bb4 {[%emt 0:00:11]} 5. Qa4+ {[%emt 0:01:24]} Nc6 {[%emt 0:00:07]} 6. e3 {[%emt 0:00:35]} O-O {[%emt 0:00:08]} 7. Bd2 {[%emt 0:00:44]} Re8 {[%emt 0:00:23] D38: Queen's Gambit Declined: Ragozin Defence (4 Nf3 Bb4).} 8. a3 {[%emt 0:03:36]} Bf8 $1 {[%emt 0:00:07] 8...Bf8 scores better than 8...Bd6.} 9. h3 {[%emt 0:13:37]} a6 {[%emt 0:01:46] The position is equal.} 10. Qc2 {[%emt 0:07:02]} h6 {[%emt 0:01:01]} 11. Rd1 {[%emt 0:03:38] [#]} dxc4 $146 {[%emt 0:42:31]} ({Predecessor:} 11... e5 12. dxe5 Nxe5 13. cxd5 Nxf3+ 14. gxf3 Nxd5 15. Rg1 c6 16. Nxd5 Qxd5 17. Rg3 Be6 {½-½ (38) Korobov,A (2718)-Predke,A (2580) Riga 2021}) 12. Bxc4 {[%emt 0:00:42]} b5 {[%emt 0:00:11]} 13. Bd3 {[%emt 0:07:58][%cal Oc3b5]} Bb7 {[%emt 0:03:53]} 14. Ne4 {[%emt 0:05:06]} e5 {[%emt 0:14:44]} 15. dxe5 {[%emt 0:14:50]} (15. Nxf6+ Qxf6 16. Nxe5 Nxe5 17. dxe5 Qxe5 $15) (15. Nxe5 $1 $16 Nxe5 16. dxe5) 15... Nd7 {[%emt 0:01:44]} (15... Nxe5 16. Nxe5 Rxe5 17. Bc3 $16) (15... Nd5 $1 $14) 16. e6 {[%emt 0:15:33]} (16. Bc3 $1 $16) 16... Rxe6 $11 {[%emt 0:01:06]} 17. Ng3 {[%emt 0:01:00]} Nde5 {[%emt 0:05:45]} 18. Be4 {[%emt 0:03:16]} Nxf3+ {[%emt 0:02:40]} 19. gxf3 {[%emt 0:00:13]} Qh4 {[%emt 0:02:48]} (19... Qc8 $11) 20. Nf5 $16 {[%emt 0:02:41]} Qh5 {[%emt 0:00:37]} 21. Bc3 {[%emt 0:05:11][%cal Oc3g7]} Rae8 {[%emt 0:09:39] [#]} (21... g6 $16) 22. Ng3 {[%emt 0:05:35]} (22. Nxg7 $1 $18 {[%mdl 512] is the precise move to win.} Bxg7 23. Rg1) 22... Qh4 {[%emt 0:03:52]} 23. Rg1 {[%emt 0:02:36]} g6 {[%emt 0:02:27]} 24. Bd5 {[%emt 0:00:47]} (24. Qb3 $1 $16) 24... b4 $11 {[%emt 0:01:16]} 25. Bxe6 {[%emt 0:00:50]} Rxe6 {[%emt 0:00:02]} 26. axb4 {[%emt 0:01:03]} Nxb4 {[%emt 0:00:02]} 27. Qb3 {[%emt 0:01:18]} (27. Qe2 $11 {remains equal.} Nd5 28. e4) 27... a5 {[%emt 0:00:32] Black is more active.} (27... Rb6 $1 $17 {[%cal Ob4d3] Hoping for ...Nd3+!} 28. Ke2 (28. Rd7 $2 Nd3+ 29. Rxd3 Rxb3 $19) 28... Nd5) 28. Nf5 $2 {[%emt 0:01:12][%mdl 8192]} (28. Ne4 $1 $14 {stays ahead.}) 28... Qxh3 $19 {[%emt 0:01:32]} 29. Ng3 {[%emt 0:00:53]} (29. Nd4 $142 Qh2 30. Rg4 (30. Nxe6 $2 Qxg1+ 31. Kd2 Qxf2+ 32. Kc1 Qxe3+ 33. Kb1 Qxe6 $19)) 29... Bxf3 {[%emt 0:01:00] White must now prevent ...Qh2.} (29... Qh2 $2 30. Ne2 Bxf3 31. Rg3) 30. Rd8 $2 {[%emt 0:01:16]} (30. Ne2 Qh5 31. Rd2) 30... Rd6 {[%emt 0:00:41]} 31. Rxd6 {[%emt 0:00:51]} Bxd6 {[%emt 0:00:02] Chess con chili.} (31... cxd6 32. Bxb4 axb4 33. Qxb4 $15) 32. Qc4 {[%emt 0:00:21]} Bxg3 $2 {[%emt 0:01:11] A strong pair of Bishops.} (32... Qd7 $19 33. Ne2 (33. Ne4 $2 Be5 $19) 33... Qf5) 33. Qb5 {[%emt 0:01:35][%mdl 8192]} (33. Bxb4 $15 Be5 34. Rxg6+ Bg7 35. Rxg7+ Kxg7 36. Bxa5 (36. Bc3+ Kg6 $17)) 33... Qc8 $2 {[%emt 0:01:23]} 34. Rxg3 $11 {[%emt 0:00:40]} Be4 {[%emt 0:00:09]} (34... Bc6 $1 $11 35. Qxa5 Nd3+ 36. Ke2 Nc1+ 37. Kd1 Nd3) 35. Qxa5 {[%emt 0:00:32]} Nc2+ {[%emt 0:00:24] [#]} (35... c5 $142) 36. Kd2 $2 {[%emt 0:00:45]} ({Only move:} 36. Ke2 $1 $16 {Threatens to win with f3.} Qd7 37. f4 (37. Qa6 Bc6 $11)) 36... Qd8+ $40 {[%emt 0:00:50][%mdl 128] White needs to defend precisely.} 37. Bd4 $1 {[%emt 0:00:30]} ({Wrong is} 37. Kc1 $2 Qd3 38. Rg4 {[#]} Nd4 $1 {[%mdl 512]} 39. Qa8+ Kh7 40. Qh8+ Kxh8 $19) 37... Nxd4 {[%emt 0:00:15]} 38. exd4 {[%emt 0:00:01]} Qxd4+ $15 {[%emt 0:00:11][%mdl 4096] Endgame KQR-KQB} 39. Ke1 {[%emt 0:00:02]} c6 {[%emt 0:00:47]} ({Don't play} 39... Qxb2 $6 40. Qxc7 Qb1+ 41. Ke2 $17) 40. Re3 $2 {[%emt 0:00:21] [#]} (40. Qc3 $11 {and White is okay.} Qd8 41. Qe3) 40... Qxb2 $1 $19 {[%emt 0:00:41][%cal Og8h7]} 41. f3 {[%emt 0:01:00]} (41. f4 h5) 41... Bd5 {[%emt 0:00:27]} 42. Qc5 {[%emt 0:00:21]} (42. Qc3 $142 Qxc3+ 43. Rxc3) 42... h5 {[%emt 0:00:29]} 43. f4 {[%emt 0:00:47]} Qb1+ {[%emt 0:00:41]} 44. Kf2 {[%emt 0:00:06]} Qb2+ {[%emt 0:00:06]} (44... Kh7 $142 45. Qc3 Qa2+ 46. Re2 Qa4) 45. Ke1 {[%emt 0:00:05]} Qf6 {[%emt 0:00:26]} 46. Re8+ {[%emt 0:00:11]} Kh7 {[%emt 0:00:06]} 47. Qf8 {[%emt 0:00:06]} Qg7 {[%emt 0:00:41]} 48. Qd6 {[%emt 0:00:21]} h4 {[%emt 0:00:53]} 49. Qd7 $2 {[%emt 0:00:48]} (49. Kf2) 49... Qc3+ {[%emt 0:00:11]} 50. Kf2 {[%emt 0:00:21]} Qf3+ {[%emt 0:00:43]} (50... Qd2+ $142 51. Re2 Qxf4+ 52. Ke1 Qg3+ 53. Kd2 h3) 51. Ke1 {[%emt 0:00:25]} Qxf4 {[%emt 0:00:25]} 52. Qd8 {[%emt 0:00:16]} Qb4+ {[%emt 0:00:26]} 53. Ke2 {[%emt 0:00:10]} Qb2+ $2 {[%emt 0:00:22]} (53... Qc4+ 54. Kd2 Qd4+ 55. Ke1 h3) 54. Ke3 $2 {[%emt 0:00:11]} (54. Kd3 Qb1+ 55. Kd4 Qg1+ 56. Ke5 Qg3+ 57. Kd4 Qg1+ 58. Ke5 Qg3+ 59. Kd4 Qg1+) 54... Qc3+ {[%emt 0:00:43]} 55. Ke2 {[%emt 0:00:12]} Qd4 {[%emt 0:00:08]} 56. Ke1 {[%emt 0:00:16]} h3 {[%emt 0:00:49][%cal Bh4h3,Bh3h2][%mdl 32] ( -> ...h2)} 57. Qc8 {[%emt 0:00:04]} Qc3+ {[%emt 0:00:12]} 58. Kf2 {[%emt 0:00:14]} h2 {[%emt 0:00:46] Weighted Error Value: White=1.07/Black=0.75} 0-1